[Event "Titled Tuesday Blitz May 9 Late 2023"]
[White "Amburgy, Ryan"]
[Black "Pakleza, Zbigniew"]
[WhiteFideId "30924820"]
[BlackFideId "1119290"]
[WhiteElo "2134"]
[BlackElo "2410"]
[Result "0-1"]
[Round "08"]
[TimeControl "180+2"]
[Date "2023.05.09"]
[WhiteClock "0:00:11"]
[BlackClock "0:00:02"]

1. d4 {[%clk 0:02:57]}  d6 {[%clk 0:03:00]} 2. e4 {[%clk 0:02:56]}  Nf6 {[%clk 0:02:59]} 3. Nc3 {[%clk 0:02:57]}  c6 {[%clk 0:02:59]} 4. a4 {[%clk 0:02:56]}  Nbd7 {[%clk 0:02:56]} 5. Nf3 {[%clk 0:02:56]}  e5 {[%clk 0:02:57]} 6. dxe5 {[%clk 0:02:54]}  dxe5 {[%clk 0:02:56]} 7. Bc4 {[%clk 0:02:52]}  Bb4 {[%clk 0:02:56]} 8. Bd2 {[%clk 0:02:41]}  O-O {[%clk 0:02:52]} 9. O-O {[%clk 0:02:39]}  Qe7 {[%clk 0:02:36]} 10. Qe2 {[%clk 0:02:29]}  a5 {[%clk 0:02:31]} 11. Rfd1 {[%clk 0:02:27]}  Nc5 {[%clk 0:02:27]} 12. Bg5 {[%clk 0:01:52]}  h6 {[%clk 0:02:22]} 13. Bxf6 {[%clk 0:01:51]}  Qxf6 {[%clk 0:02:23]} 14. Nb1 {[%clk 0:01:51]}  Ne6 {[%clk 0:02:12]} 15. Bxe6 {[%clk 0:01:52]}  Bxe6 {[%clk 0:02:09]} 16. h3 {[%clk 0:01:48]}  Rfd8 {[%clk 0:01:51]} 17. Na3 {[%clk 0:01:48]}  Rxd1+ {[%clk 0:01:39]} 18. Rxd1 {[%clk 0:01:49]}  Bxa3 {[%clk 0:01:34]} 19. bxa3 {[%clk 0:01:50]}  Qe7 {[%clk 0:01:34]} 20. Qe3 {[%clk 0:01:50]}  f6 {[%clk 0:01:31]} 21. Qb6 {[%clk 0:01:47]}  Kh7 {[%clk 0:01:18]} 22. Rd3 {[%clk 0:01:35]}  Ra6 {[%clk 0:01:06]} 23. Qb2 {[%clk 0:01:19]}  Qc7 {[%clk 0:01:03]} 24. Nd2 {[%clk 0:01:08]}  Ra8 {[%clk 0:00:52]} 25. f3 {[%clk 0:01:03]}  h5 {[%clk 0:00:47]} 26. Kf2 {[%clk 0:01:03]}  h4 {[%clk 0:00:47]} 27. Nf1 {[%clk 0:00:57]}  b5 {[%clk 0:00:38]} 28. axb5 {[%clk 0:00:43]}  cxb5 {[%clk 0:00:39]} 29. Ne3 {[%clk 0:00:43]}  Rb8 {[%clk 0:00:33]} 30. Qc3 {[%clk 0:00:40]}  Qb6 {[%clk 0:00:29]} 31. Qd2 {[%clk 0:00:33]}  Rc8 {[%clk 0:00:11]} 32. Rc3 {[%clk 0:00:26]}  Rd8 {[%clk 0:00:09]} 33. Rd3 {[%clk 0:00:26]}  Rc8 {[%clk 0:00:10]} 34. Rc3 {[%clk 0:00:27]}  Rxc3 {[%clk 0:00:10]} 35. Qxc3 {[%clk 0:00:28]}  b4 {[%clk 0:00:07]} 36. axb4 {[%clk 0:00:28]}  axb4 {[%clk 0:00:08]} 37. Qd3 {[%clk 0:00:29]}  Qc5 {[%clk 0:00:07]} 38. Ke2 {[%clk 0:00:26]}  Kg6 {[%clk 0:00:06]} 39. Qa6 {[%clk 0:00:18]}  Bc8 {[%clk 0:00:03]} 40. Qd3 {[%clk 0:00:14]}  Qa5 {[%clk 0:00:03]} 41. Kf2 {[%clk 0:00:14]}  Qa2 {[%clk 0:00:02]} 42. Qc4 {[%clk 0:00:12]}  Qxc4 {[%clk 0:00:02]} 43. Nxc4 {[%clk 0:00:13]}  Be6 {[%clk 0:00:02]} 44. Na5 {[%clk 0:00:12]}  Bd7 {[%clk 0:00:02]} 45. Nb3 {[%clk 0:00:12]}  Ba4 {[%clk 0:00:02]} 46. Ke3 {[%clk 0:00:11]}  Kg5 {[%clk 0:00:02]} 47. Kd3 {[%clk 0:00:10]}  Bxb3 {[%clk 0:00:02]} 48. cxb3 {[%clk 0:00:11]}  Kf4 {[%clk 0:00:03]} 49. Kc4 {[%clk 0:00:12]}  Kg3 {[%clk 0:00:03]} 50. Kxb4 {[%clk 0:00:13]}  Kxg2 {[%clk 0:00:04]} 51. Kc5 {[%clk 0:00:12]}  Kxh3 {[%clk 0:00:05]} 52. b4 {[%clk 0:00:13]}  Kg3 {[%clk 0:00:05]} 53. b5 {[%clk 0:00:14]}  h3 {[%clk 0:00:06]} 54. b6 {[%clk 0:00:14]}  h2 {[%clk 0:00:07]} 55. b7 {[%clk 0:00:15]}  h1=Q {[%clk 0:00:08]} 56. b8=Q {[%clk 0:00:16]}  Qxf3 {[%clk 0:00:08]} 57. Qg8 {[%clk 0:00:15]}  Qe3+ {[%clk 0:00:06]} 58. Kd6 {[%clk 0:00:16]}  Qg5 {[%clk 0:00:04]} 59. Kd5 {[%clk 0:00:14]}  Kf4 {[%clk 0:00:05]} 60. Qe6 {[%clk 0:00:14]}  Qg4 {[%clk 0:00:04]} 61. Qf7 {[%clk 0:00:13]}  Qd1+ {[%clk 0:00:02]} 62. Ke6 {[%clk 0:00:11]}  Qb3+ {[%clk 0:00:02]} 0-1


[Site "https://www.chess.com"]

[Event "Titled Tuesday Blitz May 9 Late 2023"]
[White "Sieciechowicz, Marcin"]
[Black "Manukyan, Sargis A."]
[WhiteFideId "1130170"]
[BlackFideId "13303970"]
[WhiteElo "2302"]
[BlackElo "2187"]
[Result "1-0"]
[Round "08"]
[TimeControl "180+2"]
[Date "2023.05.09"]
[WhiteClock "0:00:56"]
[BlackClock "0:00:13"]

1. d4 {[%clk 0:03:00]}  d5 {[%clk 0:02:59]} 2. Bf4 {[%clk 0:03:01]}  Nf6 {[%clk 0:02:59]} 3. e3 {[%clk 0:03:01]}  Bg4 {[%clk 0:02:55]} 4. Nf3 {[%clk 0:03:00]}  e6 {[%clk 0:02:55]} 5. c4 {[%clk 0:02:56]}  Bd6 {[%clk 0:02:54]} 6. Bg3 {[%clk 0:02:54]}  dxc4 {[%clk 0:02:54]} 7. Bxc4 {[%clk 0:02:53]}  O-O {[%clk 0:02:54]} 8. O-O {[%clk 0:02:52]}  Bxg3 {[%clk 0:02:54]} 9. hxg3 {[%clk 0:02:52]}  Nbd7 {[%clk 0:02:53]} 10. Nc3 {[%clk 0:02:52]}  e5 {[%clk 0:02:49]} 11. dxe5 {[%clk 0:02:49]}  Bxf3 {[%clk 0:02:40]} 12. gxf3 {[%clk 0:02:49]}  Nxe5 {[%clk 0:02:41]} 13. Be2 {[%clk 0:02:49]}  Qxd1 {[%clk 0:02:40]} 14. Rfxd1 {[%clk 0:02:48]}  Rfd8 {[%clk 0:02:40]} 15. f4 {[%clk 0:02:48]}  Ng6 {[%clk 0:02:34]} 16. Nb5 {[%clk 0:02:46]}  c6 {[%clk 0:02:32]} 17. Nd6 {[%clk 0:02:38]}  Rd7 {[%clk 0:02:30]} 18. Bf3 {[%clk 0:02:38]}  Rad8 {[%clk 0:02:28]} 19. Nxb7 {[%clk 0:02:38]}  Rxd1+ {[%clk 0:02:23]} 20. Rxd1 {[%clk 0:02:39]}  Rb8 {[%clk 0:02:23]} 21. Bxc6 {[%clk 0:02:38]}  Ne7 {[%clk 0:02:17]} 22. Bf3 {[%clk 0:02:37]}  Kf8 {[%clk 0:02:16]} 23. Rd8+ {[%clk 0:02:36]}  Rxd8 {[%clk 0:02:13]} 24. Nxd8 {[%clk 0:02:37]}  Ke8 {[%clk 0:02:09]} 25. Nc6 {[%clk 0:02:37]}  Nc8 {[%clk 0:02:05]} 26. Kf1 {[%clk 0:02:35]}  Kd7 {[%clk 0:02:02]} 27. Ne5+ {[%clk 0:02:35]}  Ke6 {[%clk 0:02:02]} 28. Ke2 {[%clk 0:02:33]}  Nb6 {[%clk 0:02:01]} 29. Nc6 {[%clk 0:02:33]}  a6 {[%clk 0:01:59]} 30. Nd4+ {[%clk 0:02:32]}  Kd7 {[%clk 0:01:57]} 31. Kd3 {[%clk 0:02:31]}  g6 {[%clk 0:01:57]} 32. b3 {[%clk 0:02:28]}  Kd6 {[%clk 0:01:55]} 33. a4 {[%clk 0:02:26]}  Kc5 {[%clk 0:01:51]} 34. Nc2 {[%clk 0:02:25]}  a5 {[%clk 0:01:51]} 35. e4 {[%clk 0:02:22]}  Ne8 {[%clk 0:01:45]} 36. Kc3 {[%clk 0:02:12]}  f6 {[%clk 0:01:39]} 37. Nd4 {[%clk 0:02:10]}  Nc7 {[%clk 0:01:37]} 38. Be2 {[%clk 0:02:02]}  h6 {[%clk 0:01:32]} 39. Bc4 {[%clk 0:02:02]}  Nc8 {[%clk 0:01:18]} 40. e5 {[%clk 0:01:38]}  fxe5 {[%clk 0:01:11]} 41. fxe5 {[%clk 0:01:39]}  Ne7 {[%clk 0:01:01]} 42. Ne6+ {[%clk 0:01:31]}  Kc6 {[%clk 0:00:56]} 43. Nxc7 {[%clk 0:01:29]}  Kxc7 {[%clk 0:00:50]} 44. Kd4 {[%clk 0:01:26]}  Kc6 {[%clk 0:00:48]} 45. Bd3 {[%clk 0:01:05]}  g5 {[%clk 0:00:42]} 46. Be4+ {[%clk 0:01:04]}  Kb6 {[%clk 0:00:38]} 47. f4 {[%clk 0:01:04]}  gxf4 {[%clk 0:00:25]} 48. gxf4 {[%clk 0:01:05]}  Kc7 {[%clk 0:00:23]} 49. f5 {[%clk 0:01:04]}  Nc8 {[%clk 0:00:21]} 50. f6 {[%clk 0:01:02]}  Kd8 {[%clk 0:00:20]} 51. e6 {[%clk 0:01:02]}  Nd6 {[%clk 0:00:18]} 52. e7+ {[%clk 0:01:01]}  Kd7 {[%clk 0:00:17]} 53. Bg6 {[%clk 0:00:58]}  Ke6 {[%clk 0:00:06]} 54. e8=Q+ {[%clk 0:00:55]}  Nxe8 {[%clk 0:00:07]} 55. Bxe8 {[%clk 0:00:56]}  Kxf6 {[%clk 0:00:07]} 56. Kc5 {[%clk 0:00:55]}  Ke7 {[%clk 0:00:07]} 57. Bh5 {[%clk 0:00:55]}  Kd7 {[%clk 0:00:07]} 58. Bd1 {[%clk 0:00:56]}  Kc7 {[%clk 0:00:08]} 59. Kb5 {[%clk 0:00:56]}  Kb7 {[%clk 0:00:09]} 60. Kxa5 {[%clk 0:00:56]}  Ka7 {[%clk 0:00:09]} 61. Bh5 {[%clk 0:00:56]}  Kb7 {[%clk 0:00:09]} 62. Kb5 {[%clk 0:00:57]}  Ka7 {[%clk 0:00:10]} 63. a5 {[%clk 0:00:57]}  Kb7 {[%clk 0:00:11]} 64. a6+ {[%clk 0:00:57]}  Ka7 {[%clk 0:00:12]} 65. Ka5 {[%clk 0:00:58]}  Kb8 {[%clk 0:00:13]} 66. Kb6 {[%clk 0:00:57]}  Ka8 {[%clk 0:00:13]} 67. Bg4 {[%clk 0:00:56]}  h5 {[%clk 0:00:13]} 68. Bh3 {[%clk 0:00:56]}  h4 {[%clk 0:00:13]} 69. b4 {[%clk 0:00:56]}  Kb8 {[%clk 0:00:13]} 70. a7+ {[%clk 0:00:56]}  Ka8 {[%clk 0:00:13]} 71. Bg2# {[%clk 0:00:56]} 1-0


[Site "https://www.chess.com"]

[Event "Titled Tuesday Blitz May 9 Late 2023"]
[White "Omranalhosani21"]
[Black "Holt, Conrad"]
[BlackFideId "2034387"]
[WhiteElo "2619"]
[BlackElo "2592"]
[Result "0-1"]
[Round "08"]
[TimeControl "180+2"]
[Date "2023.05.09"]
[WhiteClock "0:00:28"]
[BlackClock "0:01:37"]

1. d4 {[%clk 0:02:43]}  d5 {[%clk 0:03:00]} 2. c4 {[%clk 0:02:43]}  c6 {[%clk 0:03:00]} 3. Nc3 {[%clk 0:02:43]}  dxc4 {[%clk 0:03:00]} 4. e4 {[%clk 0:02:43]}  b5 {[%clk 0:03:00]} 5. Nf3 {[%clk 0:02:43]}  Nf6 {[%clk 0:03:00]} 6. e5 {[%clk 0:02:43]}  Nd5 {[%clk 0:03:00]} 7. Be2 {[%clk 0:02:43]}  Bf5 {[%clk 0:02:55]} 8. O-O {[%clk 0:02:42]}  e6 {[%clk 0:02:55]} 9. a4 {[%clk 0:02:14]}  b4 {[%clk 0:02:51]} 10. Nb1 {[%clk 0:02:02]}  c3 {[%clk 0:02:50]} 11. Qb3 {[%clk 0:01:47]}  cxb2 {[%clk 0:02:37]} 12. Bxb2 {[%clk 0:01:47]}  Be7 {[%clk 0:02:35]} 13. Nbd2 {[%clk 0:01:47]}  O-O {[%clk 0:02:34]} 14. a5 {[%clk 0:01:45]}  Nd7 {[%clk 0:02:26]} 15. Rfc1 {[%clk 0:01:41]}  c5 {[%clk 0:02:26]} 16. Bc4 {[%clk 0:01:38]}  Nf4 {[%clk 0:02:24]} 17. Qe3 {[%clk 0:01:30]}  Bg5 {[%clk 0:02:14]} 18. Nxg5 {[%clk 0:01:23]}  Qxg5 {[%clk 0:02:14]} 19. Qg3 {[%clk 0:01:17]}  Ne2+ {[%clk 0:01:55]} 20. Bxe2 {[%clk 0:01:12]}  Qxd2 {[%clk 0:01:56]} 21. Bf3 {[%clk 0:01:08]}  Qxb2 {[%clk 0:01:52]} 22. Bxa8 {[%clk 0:01:07]}  Rxa8 {[%clk 0:01:52]} 23. dxc5 {[%clk 0:01:07]}  Nxc5 {[%clk 0:01:51]} 24. Qf3 {[%clk 0:00:59]}  Rf8 {[%clk 0:01:49]} 25. Rd1 {[%clk 0:00:48]}  Nb3 {[%clk 0:01:47]} 26. Ra4 {[%clk 0:00:47]}  Nd4 {[%clk 0:01:38]} 27. Qe3 {[%clk 0:00:43]}  Ne2+ {[%clk 0:01:37]} 28. Kh1 {[%clk 0:00:28]}  Nc3 {[%clk 0:01:37]} 0-1


[Site "https://www.chess.com"]

[Event "Titled Tuesday Blitz May 9 Late 2023"]
[White "Filgueira, Hernan"]
[Black "Santos Ruiz, Miguel"]
[WhiteFideId "101770"]
[BlackFideId "22291482"]
[WhiteElo "2363"]
[BlackElo "2499"]
[Result "0-1"]
[Round "08"]
[TimeControl "180+2"]
[Date "2023.05.09"]
[WhiteClock "0:00:09"]
[BlackClock "0:00:11"]

1. c4 {[%clk 0:02:59]}  e5 {[%clk 0:02:59]} 2. Nc3 {[%clk 0:02:58]}  Bb4 {[%clk 0:02:59]} 3. Nd5 {[%clk 0:02:58]}  a5 {[%clk 0:02:58]} 4. a3 {[%clk 0:02:53]}  Be7 {[%clk 0:02:58]} 5. e3 {[%clk 0:02:51]}  Nf6 {[%clk 0:02:57]} 6. Qc2 {[%clk 0:02:48]}  O-O {[%clk 0:02:53]} 7. Nf3 {[%clk 0:02:47]}  d6 {[%clk 0:02:52]} 8. Be2 {[%clk 0:02:41]}  Nxd5 {[%clk 0:02:52]} 9. cxd5 {[%clk 0:02:41]}  c6 {[%clk 0:02:53]} 10. dxc6 {[%clk 0:02:39]}  Nxc6 {[%clk 0:02:53]} 11. d4 {[%clk 0:02:38]}  exd4 {[%clk 0:02:48]} 12. Nxd4 {[%clk 0:02:38]}  Nxd4 {[%clk 0:02:47]} 13. exd4 {[%clk 0:02:38]}  Be6 {[%clk 0:02:42]} 14. Bd2 {[%clk 0:02:24]}  Bd5 {[%clk 0:02:37]} 15. O-O {[%clk 0:02:23]}  Qd7 {[%clk 0:02:32]} 16. a4 {[%clk 0:02:18]}  Bf6 {[%clk 0:02:28]} 17. Bc3 {[%clk 0:02:17]}  Rfe8 {[%clk 0:02:24]} 18. Rfe1 {[%clk 0:02:06]}  Qc6 {[%clk 0:02:21]} 19. Bb5 {[%clk 0:01:58]}  Rxe1+ {[%clk 0:02:20]} 20. Rxe1 {[%clk 0:01:57]}  Qc7 {[%clk 0:02:20]} 21. Qf5 {[%clk 0:01:54]}  Be6 {[%clk 0:02:18]} 22. Qf4 {[%clk 0:01:50]}  h6 {[%clk 0:02:09]} 23. h3 {[%clk 0:01:43]}  Bd7 {[%clk 0:01:51]} 24. Bd3 {[%clk 0:01:26]}  Kf8 {[%clk 0:01:18]} 25. Bb5 {[%clk 0:01:05]}  b6 {[%clk 0:00:45]} 26. Qe4 {[%clk 0:00:58]}  Rc8 {[%clk 0:00:15]} 27. Qh7 {[%clk 0:00:55]}  g6 {[%clk 0:00:15]} 28. d5 {[%clk 0:00:42]}  Bxc3 {[%clk 0:00:15]} 29. bxc3 {[%clk 0:00:42]}  Qxc3 {[%clk 0:00:12]} 30. Qxh6+ {[%clk 0:00:40]}  Kg8 {[%clk 0:00:12]} 31. Re7 {[%clk 0:00:34]}  Bxb5 {[%clk 0:00:10]} 32. axb5 {[%clk 0:00:35]}  a4 {[%clk 0:00:08]} 33. Qf4 {[%clk 0:00:31]}  Qc1+ {[%clk 0:00:04]} 34. Qxc1 {[%clk 0:00:29]}  Rxc1+ {[%clk 0:00:05]} 35. Kh2 {[%clk 0:00:29]}  Rc5 {[%clk 0:00:04]} 36. Ra7 {[%clk 0:00:27]}  Rxd5 {[%clk 0:00:04]} 37. Rxa4 {[%clk 0:00:28]}  Rxb5 {[%clk 0:00:05]} 38. Rd4 {[%clk 0:00:28]}  d5 {[%clk 0:00:06]} 39. Kg3 {[%clk 0:00:28]}  Rc5 {[%clk 0:00:06]} 40. Kf4 {[%clk 0:00:29]}  f6 {[%clk 0:00:07]} 41. Ke3 {[%clk 0:00:29]}  Kf7 {[%clk 0:00:07]} 42. Rb4 {[%clk 0:00:29]}  Rc3+ {[%clk 0:00:06]} 43. Kd4 {[%clk 0:00:28]}  Rc2 {[%clk 0:00:06]} 44. g4 {[%clk 0:00:24]}  Rxf2 {[%clk 0:00:05]} 45. Kxd5 {[%clk 0:00:24]}  Rd2+ {[%clk 0:00:05]} 46. Ke4 {[%clk 0:00:24]}  Rd6 {[%clk 0:00:06]} 47. h4 {[%clk 0:00:23]}  Kg7 {[%clk 0:00:06]} 48. Rc4 {[%clk 0:00:23]}  Kf7 {[%clk 0:00:05]} 49. Rc7+ {[%clk 0:00:23]}  Ke6 {[%clk 0:00:06]} 50. Rg7 {[%clk 0:00:22]}  f5+ {[%clk 0:00:06]} 51. Ke3 {[%clk 0:00:20]}  Kf6 {[%clk 0:00:05]} 52. Rb7 {[%clk 0:00:17]}  fxg4 {[%clk 0:00:06]} 53. Kf4 {[%clk 0:00:18]}  Rd4+ {[%clk 0:00:07]} 54. Kg3 {[%clk 0:00:18]}  Rb4 {[%clk 0:00:08]} 55. Rc7 {[%clk 0:00:17]}  b5 {[%clk 0:00:08]} 56. Rc6+ {[%clk 0:00:16]}  Kg7 {[%clk 0:00:08]} 57. Rc7+ {[%clk 0:00:16]}  Kh6 {[%clk 0:00:09]} 58. Rb7 {[%clk 0:00:15]}  g5 {[%clk 0:00:08]} 59. hxg5+ {[%clk 0:00:12]}  Kxg5 {[%clk 0:00:09]} 60. Rb6 {[%clk 0:00:12]}  Rb3+ {[%clk 0:00:10]} 61. Kg2 {[%clk 0:00:12]}  b4 {[%clk 0:00:10]} 62. Rb5+ {[%clk 0:00:12]}  Kf4 {[%clk 0:00:11]} 63. Rb8 {[%clk 0:00:09]}  Rb2+ {[%clk 0:00:11]} 0-1


[Site "https://www.chess.com"]

[Event "Titled Tuesday Blitz May 9 Late 2023"]
[White "Gonzalez, Francisco Silva"]
[Black "Papasimakopoulos, Alexandros"]
[WhiteFideId "1512285"]
[BlackFideId "4244125"]
[WhiteElo "2074"]
[BlackElo "2359"]
[Result "0-1"]
[Round "08"]
[TimeControl "180+2"]
[Date "2023.05.09"]
[WhiteClock "0:00:00"]
[BlackClock "0:00:56"]

1. d4 {[%clk 0:03:00]}  Nf6 {[%clk 0:02:53]} 2. c4 {[%clk 0:02:59]}  e6 {[%clk 0:02:54]} 3. Nc3 {[%clk 0:02:59]}  Bb4 {[%clk 0:02:54]} 4. a3 {[%clk 0:03:00]}  Bxc3+ {[%clk 0:02:54]} 5. bxc3 {[%clk 0:03:01]}  O-O {[%clk 0:02:53]} 6. e3 {[%clk 0:03:01]}  d6 {[%clk 0:02:51]} 7. f3 {[%clk 0:03:00]}  e5 {[%clk 0:02:51]} 8. e4 {[%clk 0:03:00]}  Nc6 {[%clk 0:02:49]} 9. Be3 {[%clk 0:03:00]}  b6 {[%clk 0:02:50]} 10. Bd3 {[%clk 0:02:59]}  Ba6 {[%clk 0:02:49]} 11. Nh3 {[%clk 0:02:56]}  Na5 {[%clk 0:02:49]} 12. Qe2 {[%clk 0:02:54]}  Qd7 {[%clk 0:02:48]} 13. a4 {[%clk 0:02:55]}  Qc6 {[%clk 0:02:37]} 14. d5 {[%clk 0:02:54]}  Qd7 {[%clk 0:02:37]} 15. g4 {[%clk 0:02:53]}  c6 {[%clk 0:02:36]} 16. Nf2 {[%clk 0:02:45]}  cxd5 {[%clk 0:02:36]} 17. cxd5 {[%clk 0:02:44]}  Bxd3 {[%clk 0:02:35]} 18. Qxd3 {[%clk 0:02:43]}  Rac8 {[%clk 0:02:34]} 19. Bg5 {[%clk 0:02:38]}  Ne8 {[%clk 0:02:24]} 20. h4 {[%clk 0:02:37]}  Rc4 {[%clk 0:02:23]} 21. Qd1 {[%clk 0:02:07]}  Rxc3 {[%clk 0:02:13]} 22. Bd2 {[%clk 0:02:07]}  Rc5 {[%clk 0:02:10]} 23. Bb4 {[%clk 0:02:06]}  Rc4 {[%clk 0:02:11]} 24. Bxa5 {[%clk 0:02:06]}  bxa5 {[%clk 0:02:12]} 25. O-O {[%clk 0:02:02]}  Nc7 {[%clk 0:02:12]} 26. Qb3 {[%clk 0:01:50]}  Rb4 {[%clk 0:02:11]} 27. Qc2 {[%clk 0:01:47]}  Na6 {[%clk 0:02:07]} 28. Rfc1 {[%clk 0:01:45]}  Nc5 {[%clk 0:02:07]} 29. Nd3 {[%clk 0:01:44]}  Nxd3 {[%clk 0:02:05]} 30. Qxd3 {[%clk 0:01:42]}  Rxa4 {[%clk 0:02:06]} 31. Qa6 {[%clk 0:01:43]}  Rxa1 {[%clk 0:01:57]} 32. Rxa1 {[%clk 0:01:43]}  h5 {[%clk 0:01:58]} 33. Qc6 {[%clk 0:01:39]}  Qxc6 {[%clk 0:01:40]} 34. dxc6 {[%clk 0:01:39]}  hxg4 {[%clk 0:01:41]} 35. Rxa5 {[%clk 0:01:37]}  Rc8 {[%clk 0:01:41]} 36. Rxa7 {[%clk 0:01:35]}  Rxc6 {[%clk 0:01:38]} 37. fxg4 {[%clk 0:01:33]}  Rc4 {[%clk 0:01:38]} 38. Kf2 {[%clk 0:01:32]}  Rxe4 {[%clk 0:01:38]} 39. Kf3 {[%clk 0:01:33]}  Rf4+ {[%clk 0:01:37]} 40. Kg3 {[%clk 0:01:33]}  f6 {[%clk 0:01:36]} 41. g5 {[%clk 0:01:33]}  fxg5 {[%clk 0:01:34]} 42. hxg5 {[%clk 0:01:31]}  Kh7 {[%clk 0:01:35]} 43. Rd7 {[%clk 0:01:31]}  Rd4 {[%clk 0:01:34]} 44. Kf3 {[%clk 0:01:25]}  Kg6 {[%clk 0:01:34]} 45. Ke3 {[%clk 0:01:26]}  Kxg5 {[%clk 0:01:34]} 46. Rxg7+ {[%clk 0:01:25]}  Kf6 {[%clk 0:01:34]} 47. Rh7 {[%clk 0:01:25]}  Ke6 {[%clk 0:01:34]} 48. Rh8 {[%clk 0:01:24]}  Ra4 {[%clk 0:01:33]} 49. Re8+ {[%clk 0:01:22]}  Kd5 {[%clk 0:01:34]} 50. Rb8 {[%clk 0:01:21]}  Ra3+ {[%clk 0:01:34]} 51. Kd2 {[%clk 0:01:21]}  e4 {[%clk 0:01:34]} 52. Rb5+ {[%clk 0:01:20]}  Kd4 {[%clk 0:01:35]} 53. Rb4+ {[%clk 0:01:19]}  Ke5 {[%clk 0:01:35]} 54. Rb8 {[%clk 0:01:19]}  d5 {[%clk 0:01:35]} 55. Rb2 {[%clk 0:01:16]}  Rh3 {[%clk 0:01:34]} 56. Rb8 {[%clk 0:01:13]}  Rh2+ {[%clk 0:01:34]} 57. Kc3 {[%clk 0:01:11]}  d4+ {[%clk 0:01:34]} 58. Kb3 {[%clk 0:01:11]}  d3 {[%clk 0:01:32]} 59. Re8+ {[%clk 0:01:09]}  Kd4 {[%clk 0:01:33]} 60. Rd8+ {[%clk 0:01:06]}  Ke3 {[%clk 0:01:33]} 61. Rg8 {[%clk 0:01:07]}  Rc2 {[%clk 0:01:30]} 62. Rg3+ {[%clk 0:01:05]}  Kf4 {[%clk 0:01:30]} 63. Rh3 {[%clk 0:01:02]}  Rc8 {[%clk 0:01:30]} 64. Rh4+ {[%clk 0:01:01]}  Ke5 {[%clk 0:01:30]} 65. Rh1 {[%clk 0:00:57]}  Kd4 {[%clk 0:01:28]} 66. Kb2 {[%clk 0:00:57]}  Rc7 {[%clk 0:01:28]} 67. Rh8 {[%clk 0:00:55]}  d2 {[%clk 0:01:28]} 68. Rd8+ {[%clk 0:00:54]}  Ke3 {[%clk 0:01:28]} 69. Rh8 {[%clk 0:00:49]}  Kd3 {[%clk 0:01:28]} 70. Rh3+ {[%clk 0:00:47]}  e3 {[%clk 0:01:21]} 71. Rh7 {[%clk 0:00:42]}  d1=Q {[%clk 0:01:15]} 72. Rxc7 {[%clk 0:00:41]}  e2 {[%clk 0:01:11]} 73. Rd7+ {[%clk 0:00:39]}  Kc4 {[%clk 0:01:10]} 74. Rd2 {[%clk 0:00:35]}  Qxd2+ {[%clk 0:01:10]} 75. Ka3 {[%clk 0:00:36]}  Qb4+ {[%clk 0:01:09]} 76. Ka2 {[%clk 0:00:00]}  Kc3 {[%clk 0:00:56]} 0-1


[Site "https://www.chess.com"]

[Event "Titled Tuesday Blitz May 9 Late 2023"]
[White "Howell, David W L"]
[Black "Erzhanov, Arman"]
[WhiteFideId "410608"]
[BlackFideId "4138821"]
[WhiteElo "2567"]
[BlackElo "2138"]
[Result "0-1"]
[Round "08"]
[TimeControl "180+2"]
[Date "2023.05.09"]
[WhiteClock "0:00:00"]
[BlackClock "0:00:51"]

1. e4 {[%clk 0:03:00]}  d6 {[%clk 0:02:58]} 2. c4 {[%clk 0:02:53]}  c5 {[%clk 0:02:48]} 3. Ne2 {[%clk 0:02:51]}  Nf6 {[%clk 0:02:43]} 4. Nbc3 {[%clk 0:02:51]}  e5 {[%clk 0:02:35]} 5. a3 {[%clk 0:02:40]}  Nc6 {[%clk 0:02:35]} 6. Rb1 {[%clk 0:02:40]}  a5 {[%clk 0:02:34]} 7. g3 {[%clk 0:02:39]}  g6 {[%clk 0:02:33]} 8. Bg2 {[%clk 0:02:38]}  Bg7 {[%clk 0:02:33]} 9. d3 {[%clk 0:02:38]}  O-O {[%clk 0:02:34]} 10. O-O {[%clk 0:02:36]}  Bg4 {[%clk 0:02:26]} 11. h3 {[%clk 0:02:34]}  Bxe2 {[%clk 0:02:25]} 12. Nxe2 {[%clk 0:02:23]}  Nd4 {[%clk 0:02:25]} 13. Nxd4 {[%clk 0:02:02]}  cxd4 {[%clk 0:02:25]} 14. b4 {[%clk 0:02:02]}  axb4 {[%clk 0:02:25]} 15. axb4 {[%clk 0:02:03]}  Ra2 {[%clk 0:02:22]} 16. f4 {[%clk 0:01:48]}  Nh5 {[%clk 0:02:16]} 17. Qf3 {[%clk 0:01:43]}  exf4 {[%clk 0:02:14]} 18. gxf4 {[%clk 0:01:42]}  Qh4 {[%clk 0:02:14]} 19. Rb2 {[%clk 0:00:51]}  Rxb2 {[%clk 0:02:08]} 20. Bxb2 {[%clk 0:00:52]}  Ra8 {[%clk 0:02:01]} 21. Qg4 {[%clk 0:00:40]}  Qg3 {[%clk 0:01:37]} 22. Qxg3 {[%clk 0:00:35]}  Nxg3 {[%clk 0:01:38]} 23. Rf2 {[%clk 0:00:33]}  Ra4 {[%clk 0:01:30]} 24. b5 {[%clk 0:00:27]}  Rb4 {[%clk 0:01:30]} 25. Kh2 {[%clk 0:00:26]}  Nh5 {[%clk 0:01:29]} 26. Ba3 {[%clk 0:00:20]}  Rb3 {[%clk 0:01:24]} 27. Bxd6 {[%clk 0:00:20]}  Rxd3 {[%clk 0:01:25]} 28. c5 {[%clk 0:00:11]}  Rb3 {[%clk 0:01:21]} 29. b6 {[%clk 0:00:11]}  Bh6 {[%clk 0:01:15]} 30. e5 {[%clk 0:00:06]}  Bxf4+ {[%clk 0:01:14]} 31. Rxf4 {[%clk 0:00:06]}  Nxf4 {[%clk 0:01:15]} 32. Bxb7 {[%clk 0:00:07]}  d3 {[%clk 0:01:13]} 33. Bf3 {[%clk 0:00:04]}  d2 {[%clk 0:01:13]} 34. Bd1 {[%clk 0:00:04]}  Rb1 {[%clk 0:01:13]} 35. b7 {[%clk 0:00:03]}  Rxb7 {[%clk 0:01:11]} 36. c6 {[%clk 0:00:03]}  Rb1 {[%clk 0:01:11]} 37. c7 {[%clk 0:00:04]}  Rc1 {[%clk 0:01:11]} 38. Kg3 {[%clk 0:00:05]}  Ne6 {[%clk 0:01:10]} 39. Kf2 {[%clk 0:00:02]}  Nxc7 {[%clk 0:01:11]} 40. Ke2 {[%clk 0:00:02]}  Nb5 {[%clk 0:01:05]} 41. Kxd2 {[%clk 0:00:03]}  Ra1 {[%clk 0:01:05]} 42. Bc5 {[%clk 0:00:02]}  Ra2+ {[%clk 0:00:56]} 43. Kd3 {[%clk 0:00:02]}  Rh2 {[%clk 0:00:55]} 44. Bg4 {[%clk 0:00:02]}  Nc7 {[%clk 0:00:52]} 45. Ke3 {[%clk 0:00:01]}  Ne6 {[%clk 0:00:51]} 46. Be7 {[%clk 0:00:00]}  Ra2 {[%clk 0:00:51]} 0-1


[Site "https://www.chess.com"]